bitfinex/quotes_SOLUSD_20250425
["timestamp","ask_amount","ask_price","bid_price","bid_amount"]
[1745599497082,0.03,152.69,152.68,99.89240555]
[1745599497890,0.03,152.69,152.68,125.19505441]
[1745599498885,0.03,152.69,152.68,151.19505441]
[1745599500710,0.03,152.71,152.7,26.0]
[1745599500890,0.03,152.71,152.7,137.9924081]
[1745599501090,0.03,152.71,152.7,180.16344506]
[1745599501413,0.03,152.71,152.7,137.9924081]
[1745599502002,0.03,152.71,152.7,180.16344506]
[1745599502311,0.03,152.76,152.71,25.19800849]
[1745599502515,0.03,152.76,152.75,10.54275924]
[1745599502902,0.03,152.76,152.74,10.54275924]
[1745599503515,0.03,152.76,152.72,14.6]
[1745599503807,0.03,152.76,152.73,10.54275924]
[1745599505512,0.03,152.76,152.72,14.6]
[1745599505902,0.03,152.76,152.72,25.14275924]
[1745599506101,0.03,152.76,152.72,14.6]
[1745599506507,0.03,152.76,152.72,25.14275924]
[1745599506809,0.03,152.76,152.73,10.54275924]
[1745599508228,0.03,152.76,152.72,14.6]
[1745599510737,0.03,152.76,152.73,10.54275924]
[1745599511927,0.03,152.76,152.72,25.14275924]
[1745599512733,0.03,152.76,152.72,14.6]
[1745599514399,0.14216157,152.75,152.72,14.6]
[1745599517216,26.0,152.74,152.72,14.6]
[1745599518840,26.0,152.72,152.65,204.32]
[1745599519041,26.0,152.72,152.68,14.6]
[1745599521246,0.14216157,152.71,152.68,14.6]
[1745599525837,0.14216157,152.71,152.65,204.32]
[1745599526340,18.79181043,152.71,152.65,204.32]
[1745599527433,18.79181043,152.71,152.64,14.58]
[1745599527639,1.5931,152.7,152.64,14.58]
[1745599529856,26.0,152.68,152.64,14.58]
[1745599531047,26.0,152.68,152.61,10.60575924]
[1745599534259,26.0,152.68,152.61,0.063]
[1745599535138,26.0,152.68,152.61,17.15833351]
[1745599535351,1.5931,152.7,152.64,10.54275924]
[1745599535552,25.42013486,152.73,152.66,10.54275924]
[1745599535751,6.770486,152.73,152.66,10.54275924]
[1745599536058,0.14216157,152.71,152.63,6.55156625]
[1745599536239,26.0,152.72,152.65,10.54275924]
[1745599536439,0.14216157,152.71,152.66,10.54275924]
[1745599538061,0.14216157,152.71,152.66,17.0932268]
[1745599538544,0.14216157,152.71,152.66,10.54275924]
[1745599541164,26.0,152.72,152.66,17.09325054]
[1745599541462,26.0,152.72,152.67,10.54275924]
[1745599543566,26.0,152.72,152.65,14.58]
[1745599543752,26.0,152.72,152.66,10.54275924]
[1745599546354,26.0,152.72,152.67,10.54275924]
[1745599546763,26.0,152.72,152.66,10.54275924]
[1745599548172,0.14216157,152.71,152.65,14.58]
[1745599548350,0.14216157,152.71,152.65,25.12275924]
[1745599548752,0.14216157,152.71,152.66,10.54275924]
[1745599550476,0.14216157,152.71,152.65,25.12275924]
[1745599551877,0.14216157,152.71,152.66,10.54275924]
[1745599552355,0.14216157,152.71,152.65,25.12275924]
[1745599552682,0.14216157,152.71,152.65,14.58]
[1745599552871,26.14216157,152.7,152.65,14.58]
[1745599553982,26.0,152.68,152.65,14.58]
[1745599555873,26.0,152.66,152.61,0.063]
[1745599556588,0.14216157,152.65,152.61,0.063]
[1745599568403,18.79181043,152.65,152.61,0.063]
[1745599568594,26.14216157,152.62,152.61,0.063]
[1745599568788,44.79181043,152.62,152.61,0.063]
[1745599569102,0.14216157,152.61,152.58,0.063]
[1745599573775,46.14216157,152.59,152.58,0.063]
[1745599573997,0.14216157,152.58,152.57,0.063]
[1745599574304,44.79181043,152.56,152.55,0.063]
[1745599575591,26.14216157,152.56,152.55,0.063]
[1745599581488,44.79181043,152.56,152.55,0.063]
[1745599581686,44.79181043,152.56,152.52,0.063]
[1745599581687,0.14216157,152.55,152.52,0.063]
[1745599581989,44.79181043,152.53,152.52,0.063]
[1745599583527,44.79181043,152.53,152.49,0.063]
[1745599583528,26.0,152.5,152.49,0.063]
[1745599583690,44.79181043,152.5,152.49,0.063]
[1745599586226,26.14216157,152.5,152.49,0.063]
[1745599588890,18.64964886,152.52,152.49,0.063]
[1745599588891,26.0,152.52,152.49,0.063]
[1745599589419,0.14216157,152.51,152.49,0.063]
[1745599592522,18.79181043,152.51,152.49,0.063]
[1745599592899,44.79181043,152.5,152.49,0.063]
[1745599596931,0.14216157,152.5,152.49,0.063]
[1745599597135,26.0,152.52,152.49,0.063]
[1745599597424,0.14216157,152.51,152.49,0.063]
[1745599597625,18.64964886,152.53,152.49,0.063]
[1745599597835,26.14216157,152.5,152.49,0.063]
[1745599600525,18.64964886,152.53,152.49,0.063]
[1745599600730,26.14216157,152.52,152.49,0.063]
[1745599604451,26.14216157,152.5,152.49,0.063]
[1745599607529,44.79181043,152.5,152.49,0.063]
[1745599619153,26.0,152.5,152.49,0.063]
[1745599620341,26.14216157,152.5,152.49,0.063]
[1745599623850,44.79181043,152.5,152.49,0.063]
[1745599627855,0.14216157,152.49,152.48,0.063]
[1745599628443,38.79181043,152.49,152.48,0.063]
[1745599628763,41.2265981,152.49,152.48,0.063]
[1745599629466,26.14216157,152.47,152.46,0.063]
[1745599630367,47.2265981,152.47,152.46,0.063]
[1745599630963,44.79181043,152.47,152.46,0.063]
[1745599634881,0.14216157,152.47,152.46,0.063]
[1745599636663,20.0,152.51,152.46,0.063]
[1745599636975,14.56,152.55,152.48,10.54275924]
[1745599637176,26.0,152.52,152.47,10.54275924]
[1745599637351,26.0,152.52,152.46,17.04365924]
[1745599637665,18.64964886,152.54,152.46,17.04365924]
[1745599637840,18.64964886,152.54,152.47,10.54275924]
[1745599638168,26.0,152.53,152.47,10.54275924]
[1745599638343,0.14216157,152.52,152.47,10.54275924]
[1745599638542,18.64964886,152.54,152.47,10.54275924]
[1745599638759,26.0,152.53,152.47,10.54275924]
[1745599638938,0.14216157,152.52,152.47,10.54275924]
[1745599639149,18.64964886,152.54,152.47,10.54275924]
[1745599639342,26.0,152.53,152.47,10.54275924]
[1745599639554,0.14216157,152.52,152.47,10.54275924]
[1745599640478,0.14216157,152.52,152.46,17.04365924]
[1745599641863,26.0,152.51,152.46,6.5009]
[1745599642064,0.14216157,152.5,152.46,6.5009]
[1745599643700,0.14216157,152.5,152.46,0.063]
[1745599644789,18.79181043,152.5,152.46,0.063]
[1745599645460,26.0,152.49,152.46,0.063]
[1745599647977,0.14216157,152.5,152.46,0.063]
[1745599653398,0.14216157,152.47,152.46,0.063]
[1745599660003,18.79181043,152.47,152.46,0.063]
[1745599660177,44.79181043,152.46,152.45,0.063]
[1745599660383,18.79181043,152.45,152.43,0.063]
[1745599661006,44.79181043,152.43,152.42,0.063]
[1745599664605,0.14216157,152.42,152.41,0.063]
[1745599664817,0.14216157,152.42,152.39,0.063]
[1745599668606,26.14216157,152.42,152.39,0.063]
[1745599668808,26.0,152.42,152.39,0.063]
[1745599669399,0.14216157,152.41,152.39,0.063]
[1745599670107,26.0,152.42,152.39,0.063]
[1745599670299,26.0,152.43,152.39,0.063]
[1745599672020,0.14216157,152.42,152.39,0.063]
[1745599674021,26.0,152.43,152.39,18.76235924]
[1745599674591,26.0,152.45,152.4,10.60575924]
[1745599675392,26.0,152.45,152.41,10.54275924]
[1745599676228,26.0,152.46,152.42,10.54275924]
[1745599677198,26.0,152.46,152.41,10.54275924]
[1745599678015,26.0,152.46,152.4,0.063]
[1745599678219,0.14216157,152.45,152.4,0.063]
[1745599678514,26.14216157,152.45,152.4,0.063]
[1745599682018,0.14216157,152.45,152.4,0.063]
[1745599682513,18.79181043,152.45,152.4,0.063]
[1745599682721,26.14216157,152.42,152.4,0.063]
[1745599685220,1.5861,152.47,152.4,10.60575924]
[1745599685427,0.03,152.49,152.42,8.0453]
[1745599685647,0.03,152.49,152.44,10.54275924]
[1745599686127,26.0,152.47,152.43,10.54275924]
[1745599686627,26.0,152.47,152.42,8.0453]
[1745599687004,26.0,152.47,152.42,18.58805924]
[1745599690132,26.0,152.47,152.43,10.54275924]
[1745599690426,26.17216157,152.49,152.44,10.54275924]
[1745599690619,26.17216157,152.49,152.46,10.54275924]
[1745599690827,26.17216157,152.49,152.45,10.54275924]
[1745599694820,0.03,152.49,152.48,10.54275924]
[1745599696120,0.03,152.49,152.46,10.54275924]
[1745599696321,0.03,152.49,152.43,6.5603137]
[1745599696518,0.03,152.49,152.44,10.54275924]
[1745599697757,0.03,152.49,152.43,10.54275924]
[1745599697758,26.03,152.49,152.43,10.54275924]
[1745599700756,26.03,152.49,152.42,8.0453]
[1745599700948,26.03,152.49,152.44,10.54275924]
[1745599701924,26.03,152.49,152.43,10.54275924]
[1745599703118,0.14216157,152.48,152.42,8.0453]
[1745599703351,0.14216157,152.48,152.42,6.4542]
[1745599703653,0.14216157,152.48,152.41,14.5]
[1745599703835,0.14216157,152.48,152.41,25.04275924]
[1745599704043,0.14216157,152.48,152.41,14.5]
[1745599704955,0.14216157,152.48,152.42,10.54275924]
[1745599705335,0.14216157,152.48,152.41,25.04275924]
[1745599708444,18.79181043,152.48,152.41,14.5]
[1745599709930,0.14216157,152.44,152.41,14.5]
[1745599710246,0.14216157,152.44,152.4,0.063]
[1745599711570,26.14216157,152.44,152.4,0.063]
[1745599716642,26.0,152.43,152.4,0.063]
[1745599716854,0.14216157,152.42,152.4,0.063]
[1745599720268,26.14216157,152.42,152.4,0.063]
[1745599720466,44.79181043,152.42,152.4,0.063]
[1745599724865,26.14216157,152.42,152.4,0.063]
[1745599730176,26.0,152.42,152.4,0.063]
[1745599730488,18.64964886,152.47,152.4,10.60575924]
[1745599731360,0.14216157,152.46,152.4,10.60575924]
[1745599731571,26.0,152.46,152.4,10.60575924]
[1745599731761,0.14216157,152.45,152.4,10.60575924]
[1745599738689,26.0,152.45,152.4,10.60575924]
[1745599740398,0.03,152.49,152.43,10.54275924]
[1745599740582,26.0,152.47,152.43,10.54275924]
[1745599740795,26.0,152.47,152.42,10.54275924]
[1745599740993,26.0,152.47,152.41,10.54275924]
[1745599742008,26.0,152.47,152.42,10.54275924]
[1745599742215,26.0,152.47,152.43,10.54275924]
[1745599742393,26.0,152.47,152.44,10.54275924]
[1745599742712,0.03,152.49,152.45,10.54275924]
[1745599744612,0.03,152.49,152.47,10.54275924]
[1745599744788,0.03,152.49,152.48,10.54275924]
[1745599745589,0.03,152.49,152.47,10.54275924]
[1745599746612,0.03,152.49,152.48,10.54275924]
[1745599751312,0.03,152.49,152.48,17.10099638]
[1745599751520,0.03,152.49,152.48,59.27203334]
[1745599752394,0.03,152.51,152.5,36.54275924]
[1745599752591,0.03,152.56,152.51,18.64964886]
[1745599752821,0.03,152.56,152.53,10.54275924]
[1745599760139,0.03,152.56,152.53,17.09884656]
[1745599760515,0.03,152.56,152.53,23.74644656]
[1745599761828,0.03,152.56,152.53,17.19035924]
[1745599763333,0.03,152.56,152.53,10.54275924]
[1745599765099,0.03,152.56,152.53,35.74849542]
[1745599765304,0.03,152.56,152.53,37.05908985]
[1745599765537,0.03,152.56,152.53,38.60468985]
[1745599765832,0.03,152.56,152.53,147.40468985]
[1745599766135,0.03,152.56,152.53,146.09409542]
[1745599769315,0.03,152.56,152.53,125.89884656]
[1745599771638,0.03,152.56,152.53,82.8]
[1745599771842,0.03,152.56,152.53,93.34275924]
[1745599774741,0.03,152.56,152.53,99.89884656]
[1745599774948,0.03,152.56,152.53,118.54849542]
[1745599776137,0.03,152.56,152.53,93.34275924]
[1745599776510,0.03,152.56,152.53,10.54275924]
[1745599777946,0.03,152.56,152.53,24.96275924]
[1745599779850,0.03,152.56,152.53,31.51884656]
[1745599783121,0.03,152.56,152.53,50.16849542]
[1745599784553,0.03,152.56,152.53,24.96275924]
[1745599786829,0.03,152.56,152.53,14.42]
[1745599787858,0.17216157,152.56,152.48,14.42]
[1745599788058,1.6891,152.54,152.48,14.42]
[1745599793736,1.6891,152.54,152.48,30.93403452]
[1745599795257,0.03,152.54,152.53,42.51403452]
[1745599795449,0.03,152.56,152.53,42.51403452]
[1745599795756,0.03,152.56,152.55,16.51403452]
[1745599795952,0.03,152.56,152.55,23.06926231]
[1745599796636,0.03,152.56,152.54,20.97539363]
[1745599796831,0.03,152.56,152.54,37.48968579]
[1745599797053,0.03,152.56,152.55,16.51403452]
[1745599800536,0.03,152.56,152.52,14.4]
[1745599800850,0.03,152.56,152.52,30.91403452]
[1745599801453,0.03,152.56,152.52,14.4]
[1745599804868,0.03,152.56,152.55,16.51403452]
[1745599805241,0.03,152.56,152.55,23.06926231]
[1745599807072,0.03,152.56,152.55,16.51403452]
[1745599809076,0.03,152.56,152.55,41.71891117]
[1745599809262,0.03,152.56,152.55,43.02934262]
[1745599813084,0.03,152.56,152.55,36.47411483]
[1745599813259,0.03,152.56,152.55,41.71891117]
[1745599814574,0.03,152.56,152.54,82.8]
[1745599814780,0.03,152.56,152.52,103.75626991]
[1745599814968,0.03,152.56,152.54,16.51403452]
[1745599816866,0.03,152.56,152.55,16.51403452]
[1745599817389,0.03,152.56,152.54,16.51403452]
[1745599820595,0.03,152.56,152.48,82.8]
[1745599820886,0.17216157,152.56,152.5,14.4]
[1745599821080,0.03,152.56,152.5,30.91403452]
[1745599821275,0.03,152.56,152.51,16.51403452]
[1745599821476,0.03,152.56,152.53,16.51403452]
[1745599822176,0.03,152.56,152.52,16.51403452]
[1745599823084,0.03,152.56,152.53,16.51403452]
[1745599824472,0.03,152.56,152.52,16.51403452]
[1745599824799,0.03,152.56,152.5,30.91403452]
[1745599825378,0.17216157,152.56,152.5,14.4]
[1745599826178,26.0,152.54,152.5,14.4]
[1745599827289,1.5605,152.55,152.5,14.4]
[1745599827798,26.0,152.54,152.5,14.4]
[1745599831987,1.5605,152.55,152.5,14.4]
[1745599832201,0.03,152.56,152.52,16.51403452]
[1745599832799,0.03,152.56,152.5,20.95737664]
[1745599832984,0.03,152.56,152.52,16.51403452]
[1745599833497,0.03,152.56,152.5,14.4]
[1745599833685,26.0,152.55,152.5,14.4]
[1745599835306,1.72876157,152.54,152.5,14.4]
[1745599841812,1.72876157,152.54,152.45,0.063]
[1745599842029,1.72876157,152.54,152.45,14.443]
[1745599842030,26.0,152.5,152.45,14.443]
[1745599844022,1.72876157,152.54,152.45,30.95703452]
[1745599844333,1.5866,152.54,152.47,16.51403452]
[1745599844496,27.5866,152.54,152.47,16.51403452]
[1745599844694,27.5866,152.54,152.47,23.07266808]
[1745599845411,27.5866,152.54,152.47,16.51403452]
[1745599845609,27.5866,152.54,152.46,23.07301017]
[1745599845997,27.5866,152.54,152.46,16.51403452]
[1745599848008,27.5866,152.54,152.46,23.07310067]
[1745599848524,27.5866,152.54,152.46,16.51403452]
[1745599849999,26.0,152.52,152.45,30.95703452]
[1745599850198,0.14216157,152.51,152.45,14.443]
[1745599850528,26.14216157,152.51,152.45,14.443]
[1745599851398,26.0,152.51,152.45,30.95703452]
[1745599852124,26.0,152.52,152.46,16.51403452]
[1745599853432,27.5866,152.54,152.47,16.51403452]
[1745599853594,0.03,152.56,152.5,16.51403452]
[1745599853796,0.03,152.56,152.49,16.51403452]
[1745599854021,26.0,152.55,152.49,16.51403452]
[1745599854621,0.14216157,152.54,152.45,103.481]
[1745599854921,0.14216157,152.54,152.45,30.95703452]
[1745599855218,1.5326,152.53,152.45,14.443]
[1745599855422,1.5326,152.53,152.45,30.95703452]
[1745599855624,27.5326,152.53,152.45,30.95703452]
[1745599856428,0.14216157,152.52,152.45,14.443]
[1745599857308,26.0,152.51,152.45,14.443]
[1745599858323,0.14216157,152.5,152.45,14.443]
[1745599859306,26.0,152.49,152.45,14.443]
[1745599859710,26.0,152.49,152.45,0.063]
[1745599860223,0.14216157,152.48,152.45,0.063]
[1745599860431,1.649,152.47,152.45,0.063]
[1745599860737,26.14216157,152.46,152.45,0.063]
[1745599861234,44.79181043,152.46,152.45,0.063]
[1745599862910,18.79181043,152.45,152.44,0.13852784]
[1745599863111,0.14216157,152.44,152.43,0.063]
[1745599863346,26.0,152.42,152.41,0.063]
[1745599865540,46.37671043,152.42,152.41,0.063]
[1745599866309,46.37671043,152.42,152.36,0.063]
[1745599866310,18.79181043,152.41,152.36,0.063]
[1745599866733,44.79181043,152.4,152.36,0.063]
[1745599869449,26.0,152.4,152.36,0.063]
[1745599869648,26.14216157,152.4,152.36,0.063]
[1745599874147,26.0,152.4,152.36,0.063]
[1745599874641,18.64964886,152.44,152.36,0.063]
[1745599875032,26.0,152.41,152.36,0.063]
[1745599875619,0.14216157,152.4,152.36,0.063]
[1745599876935,26.14216157,152.4,152.36,0.063]
[1745599878053,44.79181043,152.4,152.36,0.063]
[1745599878728,51.35349022,152.4,152.36,0.063]
[1745599880344,44.79181043,152.4,152.36,0.063]
[1745599880848,26.0,152.4,152.36,0.063]
[1745599881644,26.14216157,152.4,152.36,0.063]
[1745599883459,44.79181043,152.4,152.36,0.063]
[1745599884148,18.79181043,152.39,152.36,0.063]
[1745599885058,26.0,152.39,152.36,0.063]
[1745599885366,18.64964886,152.44,152.36,0.063]
[1745599885563,26.0,152.41,152.36,0.063]
[1745599887242,0.14216157,152.4,152.36,0.063]
[1745599887573,26.14216157,152.4,152.36,0.063]
[1745599887863,18.79181043,152.39,152.36,0.063]
[1745599888572,44.79181043,152.39,152.36,0.063]
[1745599891256,44.64964886,152.37,152.36,0.063]
[1745599891773,44.79181043,152.37,152.36,0.063]
[1745599892881,26.14216157,152.37,152.36,0.063]
[1745599893565,44.79181043,152.37,152.36,0.063]
[1745599894879,51.35478214,152.37,152.36,0.063]
[1745599895173,18.79181043,152.36,152.35,0.063]
[1745599895490,18.79181043,152.36,152.34,0.063]
[1745599895695,64.64964886,152.33,152.23,1.5682]
[1745599895849,0.14216157,152.32,152.23,0.03]
[1745599896176,26.0,152.27,152.23,0.03]
[1745599896586,0.14216157,152.26,152.23,0.03]
[1745599898659,26.14216157,152.26,152.23,0.03]
[1745599901476,18.64964886,152.25,152.23,0.03]
[1745599902683,0.14216157,152.25,152.23,0.03]
[1745599906285,26.14216157,152.24,152.23,0.03]
[1745599909684,18.64216157,152.24,152.23,0.03]
[1745599910271,0.14216157,152.23,152.2,0.03]
[1745599911290,18.79181043,152.23,152.2,0.03]
[1745599911808,26.14216157,152.21,152.2,0.03]
[1745599916293,26.0,152.22,152.2,0.03]
[1745599916693,18.64964886,152.27,152.2,0.03]
[1745599917111,28.72982488,152.29,152.2,0.03]
[1745599917404,26.0,152.24,152.2,0.03]
[1745599920685,26.0,152.24,152.2,1.6744]
[1745599921094,6.05985598,152.27,152.22,16.54249184]
[1745599921408,6.05985598,152.27,152.25,16.54249184]
[1745599922091,26.27599839,152.33,152.22,18.64964886]
[1745599922293,26.27599839,152.33,152.27,16.54249184]
[1745599922498,26.0,152.32,152.27,16.54249184]
[1745599922697,26.27599839,152.33,152.26,16.54249184]
[1745599923086,26.0,152.32,152.26,16.54249184]
[1745599923610,26.27599839,152.33,152.26,16.54249184]
[1745599923811,0.14216157,152.32,152.24,14.38]
[1745599923985,26.14216157,152.32,152.26,16.54249184]
[1745599924406,26.14216157,152.32,152.27,16.54249184]
[1745599924806,26.0,152.32,152.28,16.54249184]
[1745599925487,26.27599839,152.33,152.28,16.54249184]
[1745599925686,26.27599839,152.33,152.29,16.54249184]
[1745599925906,26.27599839,152.33,152.3,16.54249184]
[1745599926115,5.24953341,152.4,152.29,1.5178]
[1745599926317,1.5168,152.41,152.34,16.54249184]
[1745599926491,26.0,152.4,152.34,16.54249184]
[1745599926687,6.56001568,152.44,152.35,16.54249184]
[1745599926916,49.07598058,152.45,152.37,16.54249184]
[1745599926917,28.20015987,152.45,152.37,16.54249184]
[1745599927212,26.0,152.42,152.37,16.54249184]
[1745599927420,18.64964886,152.44,152.37,16.54249184]
[1745599927624,22.93588058,152.45,152.37,16.54249184]
[1745599927795,26.0,152.42,152.37,16.54249184]
[1745599927994,26.0,152.42,152.36,30.90249184]
[1745599929524,26.0,152.42,152.36,14.36]
[1745599929694,0.14216157,152.41,152.36,14.36]
[1745599930017,0.14216157,152.41,152.34,6.3604]
[1745599930018,0.14216157,152.39,152.34,6.3604]
[1745599930222,18.79181043,152.39,152.32,14.36]
[1745599930394,26.0,152.36,152.3,6.5531]
[1745599930926,26.0,152.36,152.3,23.09559184]
[1745599933311,26.0,152.36,152.3,6.5531]
[1745599934206,26.0,152.35,152.3,6.5531]
[1745599934393,26.0,152.35,152.29,1.5178]
[1745599935337,26.0,152.35,152.29,18.06029184]
[1745599935498,26.0,152.36,152.3,16.54249184]
[1745599935698,26.0,152.36,152.31,16.54249184]
[1745599936195,26.0,152.38,152.31,16.54249184]
[1745599936423,26.0,152.38,152.33,16.54249184]
[1745599936793,26.0,152.39,152.33,22.97149184]
[1745599937401,26.0,152.4,152.34,16.54249184]
[1745599938513,27.5268,152.42,152.35,16.54249184]
[1745599938721,1.5268,152.42,152.34,30.90249184]
[1745599938919,27.5268,152.42,152.34,30.90249184]
[1745599939107,27.5268,152.42,152.34,14.36]
[1745599939721,26.0,152.41,152.34,14.36]
[1745599939904,26.0,152.41,152.34,30.90249184]
[1745599940831,0.14216157,152.41,152.34,97.16]
[1745599942200,6.70344171,152.41,152.34,97.16]
[1745599942517,18.79181043,152.41,152.34,97.16]
[1745599943120,18.79181043,152.39,152.34,82.8]
[1745599943316,44.64964886,152.38,152.34,82.8]
[1745599946712,44.64964886,152.38,152.31,16.54249184]
[1745599947027,44.64964886,152.38,152.3,14.34]
[1745599948231,0.14216157,152.37,152.3,14.34]
[1745599948412,0.14216157,152.37,152.27,99.34249184]
[1745599949428,0.14216157,152.37,152.27,82.8]
[1745599949627,1.6223,152.36,152.27,82.8]
[1745599950005,26.0,152.33,152.27,82.8]
[1745599952237,26.0,152.34,152.27,99.34249184]
[1745599953529,26.0,152.34,152.28,16.54249184]
[1745599954933,26.14216157,152.35,152.29,16.54249184]
[1745599955321,26.14216157,152.35,152.28,16.54249184]
[1745599955521,26.14216157,152.35,152.27,82.8]
[1745599958026,26.0,152.31,152.27,82.8]
[1745599958325,26.0,152.31,152.26,14.34]
[1745599961251,26.0,152.31,152.26,30.88249184]
[1745599961847,26.0,152.31,152.26,14.34]
[1745599965624,26.0,152.33,152.26,30.88249184]
[1745599965961,26.0,152.33,152.27,16.54249184]
[1745599967064,26.0,152.33,152.26,30.88249184]
[1745599967356,26.0,152.33,152.26,113.68249184]
[1745599972964,26.0,152.33,152.28,16.54249184]
[1745599975076,26.0,152.35,152.29,16.54249184]
[1745599977466,26.0,152.35,152.29,10.59196804]
[1745599977974,26.0,152.35,152.3,10.59196804]
[1745599978275,1.6387,152.4,152.34,10.59196804]
[1745599978448,26.0,152.38,152.34,10.59196804]
[1745599978778,0.063,152.4,152.36,10.59196804]
[1745599980375,26.063,152.4,152.35,10.59196804]
[1745599980675,0.063,152.4,152.36,10.59196804]
[1745599980850,0.063,152.4,152.38,10.59196804]
[1745599981372,0.063,152.4,152.38,16.53150246]
[1745599981559,0.063,152.4,152.39,16.53150246]
[1745599983363,0.063,152.4,152.38,113.67150246]
[1745599983545,0.063,152.4,152.38,14.34]
[1745599983751,26.063,152.4,152.33,119.79750246]
[1745599983977,26.063,152.4,152.33,113.67150246]
[1745599984277,26.063,152.4,152.33,97.14]
[1745599984462,26.063,152.4,152.33,113.67150246]
[1745599984946,26.0,152.39,152.33,113.67150246]
[1745599987867,26.0,152.39,152.33,97.14]
[1745599989453,26.0,152.39,152.33,113.67150246]
[1745599991259,26.0,152.39,152.34,16.53150246]
[1745599991467,0.063,152.4,152.35,16.53150246]
[1745599991968,0.063,152.4,152.37,16.53150246]
[1745599992152,0.063,152.4,152.38,16.53150246]
[1745599993079,0.063,152.4,152.39,16.53150246]
[1745599993772,0.063,152.4,152.38,16.53150246]
[1745599994974,0.063,152.4,152.37,82.8]
[1745599996588,0.063,152.4,152.35,16.53150246]
[1745599996991,0.063,152.4,152.34,16.53150246]
[1745599997450,26.063,152.4,152.34,16.53150246]
[1745599998156,0.063,152.4,152.33,97.14]
[1745599998751,0.063,152.4,152.33,113.67150246]
[1745599999368,0.063,152.4,152.33,103.91158046]
[1745599999571,0.063,152.4,152.33,87.380078]
[1745600000282,0.063,152.4,152.33,103.91158046]
[1745600000474,0.063,152.4,152.35,16.53150246]
[1745600000785,0.063,152.4,152.37,16.53150246]
[1745600001285,0.063,152.4,152.38,16.53150246]
[1745600002687,0.063,152.4,152.39,16.53150246]
[1745600003773,0.063,152.4,152.38,16.53150246]
[1745600004168,0.063,152.4,152.35,95.62433978]
[1745600004169,0.063,152.4,152.35,99.33150246]
[1745600004574,0.063,152.4,152.35,82.8]
[1745600005375,0.063,152.4,152.35,99.33150246]
[1745600010800,0.063,152.4,152.36,16.53150246]
[1745600010966,0.063,152.4,152.38,16.53150246]
[1745600011167,0.063,152.4,152.39,16.53150246]
[1745600012072,0.063,152.4,152.39,99.33150246]
[1745600013678,0.063,152.4,152.39,82.8]
[1745600017199,0.063,152.4,152.38,14.32]
[1745600017411,0.063,152.4,152.37,82.8]
[1745600017701,0.20516157,152.4,152.34,82.8]
[1745600020422,0.20516157,152.4,152.31,301.92]
[1745600020423,26.0,152.37,152.31,301.92]
[1745600021197,0.20516157,152.4,152.31,301.92]
[1745600021398,0.20516157,152.4,152.31,318.45150246]
[1745600021598,0.20516157,152.4,152.32,16.53150246]
[1745600022420,0.063,152.4,152.33,16.53150246]
[1745600023518,0.063,152.4,152.32,16.53150246]
[1745600025328,0.063,152.4,152.32,23.09659693]
[1745600025826,0.063,152.4,152.32,99.33150246]
[1745600027244,26.0,152.39,152.32,99.33150246]
[1745600027752,26.0,152.39,152.32,82.8]
[1745600029732,26.0,152.39,152.32,99.33150246]
[1745600030409,26.0,152.39,152.32,82.8]
[1745600030737,26.0,152.39,152.32,99.33150246]
[1745600031523,26.0,152.39,152.32,82.8]
[1745600031923,26.0,152.38,152.32,82.8]
[1745600032726,0.14216157,152.39,152.32,82.8]